bitfinex/quotes_BTCUSD_20230118
["timestamp","ask_amount","ask_price","bid_price","bid_amount"]
[1674078667707,0.969152,20788.0,20787.0,0.024]
[1674078667967,1.269152,20788.0,20787.0,0.024]
[1674078668295,0.969152,20788.0,20787.0,0.024]
[1674078673144,1.97726682,20788.0,20787.0,0.024]
[1674078673708,1.63118607,20788.0,20787.0,0.024]
[1674078673955,1.86184472,20788.0,20787.0,0.024]
[1674078674209,1.97720682,20788.0,20787.0,0.024]
[1674078674726,1.86178687,20788.0,20787.0,0.024]
[1674078675294,1.97720682,20788.0,20787.0,0.024]
[1674078675566,1.86186134,20788.0,20787.0,0.024]
[1674078676106,1.97720682,20788.0,20787.0,0.024]
[1674078676415,1.74654817,20788.0,20787.0,0.024]
[1674078676659,1.68886438,20788.0,20787.0,0.024]
[1674078676919,1.74654817,20788.0,20787.0,0.024]
[1674078677437,1.56180229,20788.0,20787.0,0.024]
[1674078677736,1.68884237,20788.0,20787.0,0.024]
[1674078677957,1.86180232,20788.0,20787.0,0.024]
[1674078678223,1.97716435,20788.0,20787.0,0.024]
[1674078678728,1.68884237,20788.0,20787.0,0.024]
[1674078679248,1.97714563,20788.0,20787.0,0.024]
[1674078679528,1.74654817,20788.0,20787.0,0.024]
[1674078679782,2.34641543,20788.0,20787.0,0.024]
[1674078680064,2.69148816,20788.0,20787.0,0.024]
[1674078681107,2.36304492,20788.0,20787.0,0.024]
[1674078681423,2.01797219,20788.0,20787.0,0.024]
[1674078681633,2.36304492,20788.0,20787.0,0.024]
[1674078681888,2.35604492,20788.0,20783.0,0.0073722]
[1674078682146,2.57504492,20788.0,20787.0,0.002]
[1674078682923,2.16097219,20788.0,20783.0,0.0073722]
[1674078683184,0.11527297,20785.0,20783.0,0.0283722]
[1674078683445,0.962278,20784.0,20783.0,0.0073722]
[1674078684011,1.262278,20784.0,20783.0,0.0073722]
[1674078684480,1.37755097,20784.0,20783.0,0.0073722]
[1674078684751,1.55046042,20784.0,20783.0,0.0073722]
[1674078685016,1.37755097,20784.0,20783.0,0.0283722]
[1674078685281,1.262278,20784.0,20783.0,0.0073722]
[1674078685539,1.266278,20784.0,20783.0,0.0282857]
[1674078686057,1.38155097,20784.0,20783.0,0.0282857]
[1674078686615,1.25446042,20784.0,20783.0,0.0282857]
[1674078686836,1.08155097,20784.0,20783.0,0.0282857]
[1674078687096,1.38155097,20784.0,20783.0,0.0282857]
[1674078687360,1.266338,20784.0,20783.0,0.0282857]
[1674078688423,1.38161097,20784.0,20783.0,0.0282857]
[1674078688681,1.55452042,20784.0,20783.0,0.0282857]
[1674078688945,1.55444341,20784.0,20783.0,0.0282857]
[1674078689244,1.66979338,20784.0,20783.0,0.0282857]
[1674078689467,1.55439567,20784.0,20783.0,0.0282857]
[1674078689743,1.25439346,20784.0,20783.0,0.0282857]
[1674078690008,0.966338,20784.0,20783.0,0.0282857]
[1674078690516,1.266338,20784.0,20783.0,0.0282857]
[1674078692063,0.966338,20784.0,20783.0,0.0282857]
[1674078692305,0.966278,20784.0,20783.0,0.0282857]
[1674078692566,1.266278,20784.0,20783.0,0.0282857]
[1674078693070,0.966278,20784.0,20783.0,0.0282857]
[1674078693601,1.266278,20784.0,20783.0,0.0282857]
[1674078693858,0.966278,20784.0,20783.0,0.0282857]
[1674078696708,1.266278,20784.0,20783.0,0.0282857]
[1674078697250,1.38142401,20784.0,20783.0,0.0282857]
[1674078697766,1.266278,20784.0,20783.0,0.0282857]
[1674078699871,1.38142401,20784.0,20783.0,0.0282857]
[1674078700119,1.266278,20784.0,20783.0,0.0282857]
[1674078700650,0.966278,20784.0,20783.0,0.0282857]
[1674078700872,1.266278,20784.0,20783.0,0.0282857]
[1674078702402,1.38142401,20784.0,20783.0,0.0282857]
[1674078703162,1.266278,20784.0,20783.0,0.0282857]
[1674078703441,1.38142401,20784.0,20783.0,0.0282857]
[1674078703673,0.966278,20784.0,20783.0,0.0282857]
[1674078704756,0.004,20784.0,20783.0,0.3559607]
[1674078706809,0.004,20784.0,20783.0,0.5059607]
[1674078710166,0.004,20784.0,20783.0,0.3559607]
[1674078713333,0.004,20784.0,20783.0,0.35587767]
[1674078713591,0.004,20784.0,20783.0,0.02820267]
[1674078714407,0.004,20784.0,20783.0,0.34672367]
[1674078714664,1.08142401,20784.0,20783.0,0.02820267]
[1674078716716,1.25433346,20784.0,20783.0,0.02820267]
[1674078716957,1.55433346,20784.0,20783.0,0.02820267]
[1674078717986,1.38142401,20784.0,20783.0,0.02820267]
[1674078718245,1.08142401,20784.0,20783.0,0.02820267]
[1674078719031,1.25433346,20784.0,20783.0,0.02820267]
[1674078719526,1.55433346,20784.0,20783.0,0.02820267]
[1674078720005,1.38142401,20784.0,20783.0,0.02820267]
[1674078720262,1.08142401,20784.0,20783.0,0.02820267]
[1674078720772,1.38142401,20784.0,20783.0,0.02820267]
[1674078721498,1.38132685,20784.0,20783.0,0.02820267]
[1674078721720,1.43909029,20784.0,20783.0,0.02820267]
[1674078722016,1.66963622,20784.0,20783.0,0.02820267]
[1674078722241,1.43909029,20784.0,20783.0,0.02820267]
[1674078722723,1.55441116,20784.0,20783.0,0.02820267]
[1674078723489,1.25441116,20784.0,20783.0,0.02820267]
[1674078724003,1.38150171,20784.0,20783.0,0.02820267]
[1674078724253,1.08150171,20784.0,20783.0,0.02820267]
[1674078724771,1.38150171,20784.0,20783.0,0.02820267]
[1674078725817,1.55441116,20784.0,20783.0,0.02820267]
[1674078726328,1.66963622,20784.0,20783.0,0.02820267]
[1674078726857,1.25441101,20784.0,20783.0,0.02820267]
[1674078727101,1.55441101,20784.0,20783.0,0.02820267]
[1674078727366,1.25441101,20784.0,20783.0,0.02820267]
[1674078727629,1.08150156,20784.0,20783.0,0.02820267]
[1674078727905,0.96618084,20784.0,20783.0,0.02820267]
[1674078728417,1.08150156,20784.0,20783.0,0.02820267]
[1674078729755,1.38150156,20784.0,20783.0,0.02820267]
[1674078730283,1.66963622,20784.0,20783.0,0.02820267]
[1674078730583,1.55442466,20784.0,20783.0,0.02820267]
[1674078731322,1.08151521,20784.0,20783.0,0.02820267]
[1674078731592,1.25442466,20784.0,20783.0,0.02820267]
[1674078732358,1.55442466,20784.0,20783.0,0.02820267]
[1674078732621,1.08151521,20784.0,20783.0,0.02820267]
[1674078733643,1.25442466,20784.0,20783.0,0.02820267]
[1674078733903,1.66963622,20784.0,20783.0,0.02820267]
[1674078734160,1.49672677,20784.0,20783.0,0.02820267]
[1674078734468,1.55436326,20784.0,20783.0,0.02820267]
[1674078734730,1.38198084,20784.0,20783.0,0.02820267]
[1674078734981,1.6703533,20784.0,20783.0,0.02820267]
[1674078735800,1.38198084,20784.0,20783.0,0.02820267]
[1674078736280,1.67030656,20784.0,20783.0,0.02820267]
[1674078736531,1.38198084,20784.0,20783.0,0.02820267]
[1674078736805,1.67030501,20784.0,20783.0,0.02820267]
[1674078737345,2.02236219,20784.0,20783.0,0.02820267]
[1674078737606,2.43695048,20784.0,20783.0,0.02820267]
[1674078737889,2.58695048,20784.0,20783.0,0.02820267]
[1674078738148,2.24187775,20784.0,20783.0,0.02820267]
[1674078738969,2.58695048,20784.0,20783.0,0.02820267]
[1674078739222,2.88355048,20784.0,20783.0,0.02820267]
[1674078739493,2.18642057,20784.0,20783.0,0.02820267]
[1674078739935,2.5314933,20784.0,20783.0,0.02820267]
[1674078740195,2.52759046,20784.0,20783.0,0.00720267]
[1674078740733,2.91539288,20784.0,20783.0,0.00720267]
[1674078741058,2.96139288,20784.0,20783.0,0.00920267]
[1674078741263,2.96562957,20784.0,20783.0,0.00720267]
[1674078741527,2.96562957,20784.0,20782.0,0.00889441]
[1674078741528,4.57370781,20784.0,20782.0,0.00889441]
[1674078741789,1.77915332,20783.0,20782.0,0.00889441]
[1674078742054,2.12505332,20783.0,20782.0,0.00889441]
[1674078742624,3.66865406,20783.0,20782.0,0.00889441]
[1674078742885,2.48609224,20783.0,20782.0,0.00889441]
[1674078743139,2.56009224,20783.0,20782.0,0.01089441]
[1674078743418,2.2142998,20783.0,20782.0,0.01089441]
[1674078743691,2.56009224,20783.0,20782.0,0.01089441]
[1674078743962,2.2142998,20783.0,20782.0,0.01089441]
[1674078744489,1.9834998,20783.0,20782.0,0.01089441]
[1674078745290,1.9749998,20783.0,20782.0,0.01089441]
[1674078745554,1.97485795,20783.0,20782.0,0.01089441]
[1674078746110,1.67485795,20783.0,20782.0,0.01089441]
[1674078746606,1.19375595,20783.0,20782.0,0.01089441]
[1674078746624,1.67491795,20783.0,20782.0,0.01089441]
[1674078747398,2.23544733,20783.0,20782.0,0.01089441]
[1674078747663,1.6869598,20783.0,20782.0,0.01089441]
[1674078747932,2.20525339,20783.0,20782.0,0.01089441]
[1674078748439,1.6869598,20783.0,20782.0,0.01089441]
[1674078749106,1.97490771,20783.0,20782.0,0.01089441]
[1674078749328,1.97495763,20783.0,20782.0,0.01089441]
[1674078749558,2.15130926,20783.0,20782.0,0.01089441]
[1674078750447,2.4971017,20783.0,20782.0,0.01089441]
[1674078750678,2.15130926,20783.0,20782.0,0.01089441]
[1674078751362,2.15124926,20783.0,20782.0,0.01089441]
[1674078751610,2.4970417,20783.0,20782.0,0.01089441]
[1674078751829,2.15124926,20783.0,20782.0,0.01089441]
[1674078752042,2.4970417,20783.0,20782.0,0.01089441]
[1674078752473,1.6868998,20783.0,20782.0,0.01089441]
[1674078752939,1.9748627,20783.0,20782.0,0.01089441]
[1674078753152,1.6748627,20783.0,20782.0,0.01089441]
[1674078753586,1.90524174,20783.0,20782.0,0.01089441]
[1674078754473,2.20524174,20783.0,20782.0,0.01089441]
[1674078755835,2.2052488,20783.0,20782.0,0.01089441]
[1674078756277,2.09007301,20783.0,20782.0,0.01089441]
[1674078757244,1.97488211,20783.0,20782.0,0.01089441]
[1674078757467,1.85968691,20783.0,20782.0,0.01089441]
[1674078757942,2.09007301,20783.0,20782.0,0.01089441]
[1674078758832,1.79007301,20783.0,20782.0,0.01089441]
[1674078759052,1.85968691,20783.0,20782.0,0.01089441]
[1674078759318,1.97489522,20783.0,20782.0,0.01089441]
[1674078759756,2.09007301,20783.0,20782.0,0.01089441]
[1674078759969,1.55968691,20783.0,20782.0,0.01089441]
[1674078760453,2.09007301,20783.0,20782.0,0.01089441]
[1674078760889,2.2052488,20783.0,20782.0,0.01089441]
[1674078761543,1.9748627,20783.0,20782.0,0.01089441]
[1674078761804,2.20530592,20783.0,20782.0,0.01089441]
[1674078762265,2.09017211,20783.0,20782.0,0.01089441]
[1674078762929,1.91734302,20783.0,20782.0,0.01089441]
[1674078763842,2.20530592,20783.0,20782.0,0.01089441]
[1674078764067,2.04975344,20783.0,20782.0,0.01089441]
[1674078764549,1.97498729,20783.0,20782.0,0.01089441]
[1674078764774,1.91736488,20783.0,20782.0,0.01089441]
[1674078764987,1.90545237,20783.0,20782.0,0.01089441]
[1674078765208,1.79022796,20783.0,20782.0,0.01089441]
[1674078766089,1.90545237,20783.0,20782.0,0.01089441]
[1674078766340,1.90545237,20783.0,20782.0,0.01080824]
[1674078766601,2.20545237,20783.0,20782.0,0.01080824]
[1674078767698,1.97498729,20783.0,20782.0,0.01080824]
[1674078768761,2.20552215,20783.0,20782.0,0.01080824]
[1674078769267,1.97498729,20783.0,20782.0,0.01080824]
[1674078769530,2.02672157,20783.0,20782.0,0.01080824]
[1674078769782,2.37251401,20783.0,20782.0,0.01080824]
[1674078770038,2.02672157,20783.0,20782.0,0.01080824]
[1674078770296,1.6868998,20783.0,20782.0,0.01080824]
[1674078770554,2.03269224,20783.0,20782.0,0.01080824]
[1674078771102,1.6868998,20783.0,20782.0,0.01080824]
[1674078771349,2.03269224,20783.0,20782.0,0.01080824]
[1674078772654,1.6868998,20783.0,20782.0,0.01080824]
[1674078773180,2.03269224,20783.0,20782.0,0.01080824]
[1674078773770,2.4066383,20783.0,20782.0,0.01080824]
[1674078775054,2.03269224,20783.0,20782.0,0.01080824]
[1674078776621,1.6868998,20783.0,20782.0,0.01080824]
[1674078777138,2.03312369,20783.0,20782.0,0.01080824]
[1674078777668,1.6868998,20783.0,20782.0,0.01080824]
[1674078779568,2.07567021,20783.0,20782.0,0.01080824]
[1674078779794,1.6868998,20783.0,20782.0,0.01080824]
[1674078780080,2.06413186,20783.0,20782.0,0.01080824]
[1674078780832,1.6868998,20783.0,20782.0,0.01080824]
[1674078781080,2.03311578,20783.0,20782.0,0.01080824]
[1674078781388,1.6868998,20783.0,20782.0,0.01080824]
[1674078781639,1.49762169,20783.0,20782.0,0.01080824]
[1674078781936,1.036324,20783.0,20782.0,0.01080824]
[1674078782456,1.32479928,20783.0,20782.0,0.01080824]
[1674078782708,1.32479928,20783.0,20782.0,0.33477924]
[1674078782975,1.32479928,20783.0,20782.0,0.01080824]
[1674078783724,1.036324,20783.0,20782.0,0.32743824]
[1674078784224,1.036324,20783.0,20782.0,0.01080824]
[1674078784478,1.32479994,20783.0,20782.0,0.01080824]
[1674078784733,1.62479994,20783.0,20782.0,0.01080824]
[1674078785056,1.85557317,20783.0,20782.0,0.01080824]
[1674078785230,1.62479994,20783.0,20782.0,0.01080824]
[1674078785747,1.85557555,20783.0,20782.0,0.01080824]
[1674078786530,1.85557555,20783.0,20782.0,0.01068855]
[1674078789191,1.62479994,20783.0,20782.0,0.01068855]
[1674078789712,1.336324,20783.0,20782.0,0.01068855]
[1674078789975,1.62476595,20783.0,20782.0,0.01068855]
[1674078791274,1.336324,20783.0,20782.0,0.01068855]
[1674078791580,1.62479191,20783.0,20782.0,0.01068855]
[1674078791835,1.44017364,20783.0,20782.0,0.11277618]
[1674078792087,1.26709647,20783.0,20782.0,0.44524518]
[1674078792346,1.44015941,20783.0,20782.0,0.44524518]
[1674078792601,1.32475878,20783.0,20782.0,0.44524518]
[1674078792909,0.67053384,20783.0,20782.0,0.56094518]
[1674078793182,0.72822494,20783.0,20782.0,0.56094518]
[1674078793440,0.95899741,20783.0,20782.0,0.56094518]
[1674078793725,0.95899741,20783.0,20782.0,0.55261718]
[1674078793973,0.84357558,20783.0,20782.0,0.55261718]
[1674078794469,0.67051264,20783.0,20782.0,0.55261718]
[1674078795998,0.18935064,20783.0,20782.0,0.55261718]
[1674078796251,0.074,20783.0,20782.0,0.55261718]
[1674078797526,0.074,20783.0,20782.0,0.78361718]
[1674078797779,0.074,20783.0,20782.0,0.93361718]
[1674078798106,6e-05,20784.0,20782.0,0.93161718]
[1674078798288,6e-05,20784.0,20783.0,0.713269]
[1674078799057,6e-05,20784.0,20783.0,1.675593]
[1674078800060,0.05106,20784.0,20783.0,1.678593]
[1674078803749,0.05106,20784.0,20783.0,2.42753564]
[1674078804253,0.05106,20784.0,20783.0,1.97921704]
[1674078804739,0.05106,20784.0,20783.0,2.67391704]
[1674078805261,0.00606,20784.0,20783.0,2.69991704]
[1674078806553,6e-05,20788.0,20783.0,2.69991704]
[1674078806811,0.006,20784.0,20783.0,1.32614804]
[1674078807066,0.006,20784.0,20783.0,2.67082704]
[1674078807336,6e-05,20788.0,20783.0,2.64182704]
[1674078807590,0.00606,20788.0,20787.0,0.2312]
[1674078807860,0.00606,20788.0,20787.0,0.573701]
[1674078809230,6e-05,20788.0,20787.0,0.688401]
[1674078809490,0.00306,20788.0,20787.0,0.709401]
[1674078809776,0.00306,20788.0,20787.0,0.70931437]
[1674078810070,0.00306,20788.0,20787.0,0.72300337]
[1674078810351,0.00306,20788.0,20787.0,0.87300337]
[1674078810604,0.00306,20788.0,20787.0,1.35407237]
[1674078810868,0.00306,20788.0,20787.0,1.51188467]
[1674078811371,0.00306,20788.0,20787.0,1.2807713]
[1674078811634,0.00306,20788.0,20787.0,1.3958713]
[1674078812442,0.00306,20788.0,20787.0,1.9927403]
[1674078812965,6e-05,20788.0,20787.0,3.93112829]
[1674078813221,0.0001,20789.0,20788.0,0.31910999]
[1674078813477,0.0001,20789.0,20788.0,3.57680028]
[1674078813789,0.0001,20789.0,20788.0,3.57630028]
[1674078814797,0.0001,20789.0,20788.0,2.88180028]
[1674078815385,0.0041,20789.0,20788.0,2.93380028]
[1674078815640,0.0041,20789.0,20788.0,5.22100028]
[1674078815902,0.0001,20789.0,20788.0,5.16900028]
[1674078816160,0.0041,20789.0,20788.0,4.99392406]
[1674078816427,0.0041,20789.0,20788.0,4.43682406]
[1674078816428,0.0001,20789.0,20788.0,4.43682406]
[1674078816686,0.0041,20789.0,20788.0,3.78632406]
[1674078816939,0.0001,20789.0,20788.0,3.28600546]
[1674078817203,0.0001,20789.0,20788.0,3.73102311]
[1674078817464,0.0001,20789.0,20788.0,3.28600546]
[1674078818498,0.0041,20789.0,20788.0,3.33800546]
[1674078820419,0.0041,20789.0,20788.0,3.81990546]
[1674078824702,0.0041,20789.0,20788.0,3.12630546]
[1674078826269,0.0041,20789.0,20788.0,2.30225377]
[1674078827279,0.0041,20789.0,20788.0,1.34016177]
[1674078828105,0.0041,20789.0,20788.0,0.85826177]
[1674078829139,0.0041,20789.0,20788.0,0.74336177]
[1674078829446,0.0001,20789.0,20788.0,0.69136177]
[1674078829662,0.0041,20789.0,20788.0,0.73836177]
[1674078829920,0.0001,20789.0,20788.0,0.69136177]
[1674078830199,0.0041,20789.0,20788.0,0.73836177]
[1674078830459,0.0001,20789.0,20788.0,0.69136177]
[1674078830769,0.0041,20789.0,20788.0,0.73836177]
[1674078834148,0.0041,20789.0,20788.0,0.62246177]
[1674078842504,0.0041,20789.0,20788.0,1.81325377]
[1674078842973,0.00859969,20792.0,20789.0,0.15006814]
[1674078843224,0.00859969,20792.0,20790.0,1.290152]
[1674078843452,0.00859969,20792.0,20791.0,0.333231]
[1674078844014,0.00859969,20792.0,20791.0,1.295185]
[1674078844530,0.01259969,20792.0,20791.0,1.295185]
[1674078845091,0.00859969,20792.0,20791.0,1.445185]
[1674078845315,0.00859969,20792.0,20791.0,2.58992718]
[1674078845577,0.00859969,20792.0,20791.0,2.59842718]
[1674078845865,0.00859969,20792.0,20791.0,2.93524227]
[1674078846122,0.00859969,20792.0,20791.0,3.53034227]
[1674078846396,0.00479245,20795.0,20792.0,0.31490427]
[1674078846674,0.00479245,20795.0,20793.0,2.90106157]
[1674078846901,0.00479245,20795.0,20794.0,0.333594]
[1674078847236,0.00479245,20795.0,20794.0,1.295408]
[1674078847491,0.00479245,20795.0,20794.0,1.38658526]
[1674078848766,0.00479245,20795.0,20794.0,1.50218526]
[1674078849030,0.00479245,20795.0,20794.0,1.51278191]
[1674078849299,0.00479245,20795.0,20794.0,1.60578191]
[1674078850046,0.00479245,20795.0,20794.0,1.59518526]
[1674078851632,0.00479245,20795.0,20794.0,1.74518526]
[1674078852379,0.00479245,20795.0,20794.0,2.22238695]
[1674078853447,0.00479245,20795.0,20794.0,2.12938695]
[1674078853702,0.00479245,20795.0,20794.0,2.10678695]
[1674078853955,0.00479245,20795.0,20794.0,1.95678695]
[1674078855040,0.00479245,20795.0,20794.0,2.03538695]
[1674078855594,0.00479245,20795.0,20794.0,0.99867826]
[1674078855859,0.00479245,20795.0,20794.0,0.51777126]
[1674078856636,0.00479245,20795.0,20794.0,0.49415926]
[1674078857202,0.00479245,20795.0,20794.0,0.18417726]
[1674078862720,0.00479245,20795.0,20794.0,0.18153726]
[1674078863236,0.00479245,20795.0,20794.0,0.50993026]
[1674078864271,0.00479245,20795.0,20794.0,0.093]
[1674078864798,0.48567645,20795.0,20794.0,0.093]
[1674078865077,1.26656045,20795.0,20794.0,0.093]
[1674078866366,1.26656045,20795.0,20789.0,1.05172864]
[1674078866601,1.26756045,20795.0,20794.0,0.085]
[1674078866855,1.26656045,20795.0,20789.0,1.05172864]
[1674078867122,1.27356045,20795.0,20789.0,1.24604961]
[1674078867386,1.26656045,20795.0,20790.0,0.324585]
[1674078867652,0.3,20794.0,20790.0,0.19432097]
[1674078867900,0.961847,20794.0,20789.0,0.9584905]
[1674078868156,0.961847,20794.0,20789.0,0.8734905]
[1674078868427,1.14138751,20794.0,20790.0,0.327149]
[1674078868700,1.14138751,20794.0,20791.0,0.31879]
[1674078868974,1.14138751,20794.0,20789.0,0.8734905]
[1674078869233,1.14138751,20794.0,20789.0,1.06781147]
[1674078869493,1.14138751,20794.0,20790.0,0.332276]
[1674078869754,1.14238751,20794.0,20791.0,0.332393]
[1674078870223,1.14138751,20794.0,20790.0,0.19432097]
[1674078870247,1.14238751,20794.0,20790.0,0.19432097]
[1674078870480,1.14238751,20794.0,20789.0,0.8734905]
[1674078870739,1.14138751,20794.0,20789.0,1.06781147]
[1674078870994,0.961847,20794.0,20791.0,0.15]
[1674078871256,0.962847,20794.0,20792.0,0.302452]
[1674078871516,0.962847,20794.0,20791.0,0.086]
[1674078871775,0.961847,20794.0,20789.0,0.3924845]
[1674078872037,0.962847,20794.0,20789.0,0.4774845]
[1674078872303,0.961847,20794.0,20789.0,0.58680547]
[1674078872569,0.961847,20794.0,20792.0,0.066]
[1674078872834,0.961847,20794.0,20789.0,0.77437547]
[1674078873081,0.962847,20794.0,20789.0,0.67180547]
[1674078873608,0.962847,20794.0,20790.0,0.326179]
[1674078873916,0.962847,20794.0,20791.0,0.314517]
[1674078874185,0.962847,20794.0,20790.0,0.19432097]
[1674078874459,0.962847,20794.0,20789.0,0.4774845]
[1674078874713,0.961847,20794.0,20789.0,0.50820547]
[1674078875219,0.962847,20794.0,20791.0,0.086]
[1674078875743,0.962847,20794.0,20789.0,0.59320547]
[1674078876013,0.961847,20794.0,20789.0,0.98922247]
[1674078876272,0.962847,20794.0,20791.0,0.086]
[1674078876767,0.962847,20794.0,20792.0,0.329077]
[1674078877020,0.962847,20794.0,20793.0,0.344155]
[1674078877021,0.482931,20794.0,20793.0,0.344155]
[1674078877543,0.48568145,20795.0,20793.0,0.344155]
[1674078877828,0.001,20794.0,20791.0,0.630974]
[1674078878114,0.48568145,20795.0,20792.0,0.321795]
[1674078878374,0.005,20794.0,20793.0,0.315281]
[1674078878654,0.48568145,20795.0,20791.0,0.630974]
[1674078878911,0.48568145,20795.0,20792.0,0.41748932]
[1674078879177,0.48568145,20795.0,20793.0,0.319666]
[1674078879438,0.48668145,20795.0,20792.0,0.17691232]
[1674078880201,0.48668145,20795.0,20793.0,0.318253]
[1674078880466,0.48768145,20795.0,20792.0,0.09091232]
[1674078880785,0.48568145,20795.0,20792.0,0.09091232]
[1674078881024,0.48668145,20795.0,20792.0,0.09091232]
[1674078881300,0.48668145,20795.0,20793.0,0.379743]
[1674078881572,0.96656545,20795.0,20794.0,0.308346]
[1674078882059,0.48568145,20795.0,20792.0,0.09091232]
[1674078882074,0.00479245,20795.0,20792.0,0.09091232]
[1674078882326,0.00479245,20795.0,20792.0,0.57185432]
[1674078882578,0.00479245,20795.0,20793.0,0.336459]
[1674078882843,0.00479245,20795.0,20794.0,0.333971]
[1674078883346,0.00479245,20795.0,20794.0,0.45689694]
[1674078883609,0.00479245,20795.0,20794.0,1.90441263]
[1674078883866,0.00979245,20795.0,20794.0,2.05441263]
[1674078884714,0.00479245,20795.0,20794.0,2.13301263]
[1674078884974,0.00479245,20795.0,20794.0,2.22501263]
[1674078885223,0.08792696,20799.0,20795.0,0.15]
[1674078885470,0.08792696,20799.0,20796.0,1.47099797]
[1674078885755,0.08792696,20799.0,20797.0,0.305973]
[1674078886029,0.66521376,20801.0,20798.0,0.307961]
[1674078886258,0.66521376,20801.0,20799.0,0.319193]
[1674078886531,0.89598623,20801.0,20799.0,0.19432097]
[1674078886777,0.89598623,20801.0,20796.0,1.67967954]
[1674078886778,0.89598623,20801.0,20798.0,0.05734672]
[1674078887071,0.89698623,20801.0,20798.0,0.06434672]
[1674078887325,0.66521376,20801.0,20798.0,0.05734672]
[1674078887580,0.49315082,20801.0,20799.0,0.325736]
[1674078887835,0.49315082,20801.0,20800.0,0.342113]
[1674078888080,0.49415082,20801.0,20798.0,0.05734672]
[1674078888348,0.66521376,20801.0,20798.0,0.05734672]
[1674078888875,1.14595976,20801.0,20798.0,0.05734672]
[1674078889391,1.37673223,20801.0,20798.0,0.05734672]
[1674078889872,1.14695976,20801.0,20798.0,0.05734672]
[1674078890121,1.37773223,20801.0,20798.0,0.05734672]
[1674078890627,1.14695976,20801.0,20798.0,0.05734672]
[1674078894223,1.37773223,20801.0,20798.0,0.05734672]
[1674078894483,1.14695976,20801.0,20798.0,0.05734672]
[1674078894988,1.14695976,20801.0,20798.0,0.25166769]
[1674078894989,0.18445376,20801.0,20798.0,0.25166769]
[1674078895247,0.01139082,20801.0,20799.0,0.338932]
[1674078895498,0.01139082,20801.0,20800.0,0.300009]
[1674078896783,0.01139082,20801.0,20800.0,0.362009]
[1674078897039,0.01139082,20801.0,20800.0,0.300009]
[1674078897401,0.01139082,20801.0,20800.0,0.48673951]
[1674078898064,0.01139082,20801.0,20800.0,0.54873951]
[1674078900136,0.01139082,20801.0,20800.0,0.56021112]
[1674078900914,0.01139082,20801.0,20800.0,0.54873951]
[1674078903295,0.01139082,20801.0,20800.0,1.02950851]
[1674078903852,0.01139082,20801.0,20800.0,1.17950851]
[1674078904900,0.01139082,20801.0,20800.0,1.02950851]
[1674078905957,0.01139082,20801.0,20800.0,1.04220713]
[1674078906218,0.01139082,20801.0,20800.0,0.56116949]
[1674078906991,0.01139082,20801.0,20800.0,0.26116049]
[1674078907531,0.01139082,20801.0,20800.0,0.59180349]
[1674078908819,0.01139082,20801.0,20800.0,0.58591249]
[1674078909087,0.01139082,20801.0,20800.0,0.26116049]
[1674078909341,0.49213682,20801.0,20800.0,0.26116049]
[1674078909613,0.49213682,20801.0,20800.0,0.07442998]
[1674078910157,0.97288282,20801.0,20800.0,0.07442998]
[1674078911454,1.27288282,20801.0,20800.0,0.07442998]
[1674078914053,1.6001769,20801.0,20800.0,0.07442998]
[1674078914316,1.71524642,20801.0,20800.0,0.07442998]
[1674078915094,1.88830936,20801.0,20800.0,0.01242998]
[1674078915354,1.8892113,20801.0,20800.0,0.02042998]
[1674078915651,1.83094937,20801.0,20800.0,0.01242998]
[1674078915917,2.11941728,20801.0,20800.0,0.01242998]
[1674078916435,1.89264481,20801.0,20800.0,0.01942998]
[1674078916692,1.88864481,20801.0,20800.0,0.01242998]
[1674078916970,1.88864481,20801.0,20795.0,0.16345459]
[1674078917272,0.06871061,20799.0,20795.0,0.16345459]
[1674078917526,0.48082,20798.0,20795.0,0.16345459]
[1674078917780,1.44246,20798.0,20795.0,0.16345459]
[1674078919150,1.44246,20798.0,20795.0,0.35777556]
[1674078919418,1.44646,20798.0,20795.0,0.16345459]
[1674078919963,1.44246,20798.0,20795.0,0.16345459]
[1674078920492,1.44246,20798.0,20795.0,0.22745459]
[1674078920771,0.96164,20798.0,20795.0,0.22745459]
[1674078922667,0.96164,20798.0,20796.0,0.303532]
[1674078922920,0.73037815,20799.0,20796.0,0.480861]
[1674078922921,0.24956715,20799.0,20796.0,0.480861]
[1674078923174,0.480776,20800.0,20797.0,0.309177]
[1674078923444,0.480776,20800.0,20798.0,0.308718]
[1674078923744,0.480776,20800.0,20797.0,0.08355831]
[1674078923998,0.004,20798.0,20797.0,0.08355831]
[1674078924265,0.480776,20800.0,20797.0,0.08355831]
[1674078924533,0.480776,20800.0,20798.0,0.322582]
[1674078924788,0.480776,20800.0,20797.0,0.08355831]
[1674078925552,0.480776,20800.0,20797.0,0.14755831]
[1674078925809,0.480776,20800.0,20798.0,0.327744]
[1674078926075,0.480776,20800.0,20797.0,0.14755831]
[1674078926589,0.961545,20800.0,20797.0,0.14755831]
[1674078926805,0.961545,20800.0,20797.0,0.08355831]
[1674078927076,0.965545,20800.0,20797.0,0.08355831]
[1674078927373,0.480776,20800.0,20797.0,0.08355831]
[1674078927702,0.480776,20800.0,20797.0,0.14755831]
[1674078928941,0.85383952,20801.0,20797.0,0.62839431]
[1674078929201,0.85383952,20801.0,20797.0,0.82271528]
[1674078929465,1.33458552,20801.0,20797.0,0.14755831]
[1674078929721,0.41511013,20800.0,20797.0,0.14755831]
[1674078929988,1.06855645,20800.0,20797.0,0.14755831]
[1674078930242,0.59588013,20800.0,20797.0,0.08355831]
[1674078930497,0.59588013,20800.0,20797.0,0.14755831]
[1674078930744,0.59588013,20800.0,20797.0,0.08355831]
[1674078930991,0.961539,20800.0,20797.0,0.08355831]
[1674078931235,1.07664913,20800.0,20797.0,0.08355831]
[1674078931746,1.07664913,20800.0,20797.0,0.14755831]
[1674078933052,1.07664913,20800.0,20798.0,0.02844929]
[1674078934104,1.24932545,20800.0,20798.0,0.02844929]
[1674078934335,1.07664913,20800.0,20798.0,0.02844929]
[1674078935428,1.08064913,20800.0,20798.0,0.02844929]
[1674078936135,0.3,20799.0,20798.0,0.02844929]
[1674078936402,0.49900835,20799.0,20798.0,0.02844929]
[1674078936691,1.57570248,20799.0,20798.0,0.02844929]
[1674078936913,1.7483788,20799.0,20798.0,0.02844929]
[1674078937678,1.63326867,20799.0,20798.0,0.02844929]
[1674078937938,1.7523643,20799.0,20798.0,0.02844929]
[1674078938191,1.63726867,20799.0,20798.0,0.02844929]
[1674078939271,1.75236772,20799.0,20798.0,0.02844929]
[1674078939471,1.75236772,20799.0,20798.0,0.02835533]
[1674078939727,1.86748761,20799.0,20798.0,0.02835533]
[1674078939987,1.75306026,20799.0,20798.0,0.02835533]
[1674078940250,2.39015226,20799.0,20798.0,0.02835533]